bitfinex/quotes_SOLUSD_20250520
["timestamp","ask_amount","ask_price","bid_price","bid_amount"]
[1747721701244,33.18959184,168.3,168.24,3.39620525]
[1747721701736,12.39339459,168.29,168.24,3.39620525]
[1747721701942,33.18959184,168.3,168.24,3.39620525]
[1747721703129,33.18959184,168.3,168.25,3.39620525]
[1747721704845,33.18959184,168.3,168.26,3.39620525]
[1747721706243,33.18959184,168.3,168.23,3.39620525]
[1747721707346,12.39339459,168.29,168.23,3.39620525]
[1747721707729,12.39339459,168.29,168.24,3.39620525]
[1747721708029,20.79619725,168.3,168.24,3.39620525]
[1747721708429,33.18959184,168.3,168.24,3.39620525]
[1747721709325,33.18959184,168.3,168.25,3.39620525]
[1747721709856,28.74675981,168.3,168.25,3.39620525]
[1747721711448,28.74675981,168.3,168.26,3.39620525]
[1747721712440,20.79619725,168.3,168.26,3.39620525]
[1747721712630,7.95056256,168.29,168.27,3.39620525]
[1747721712845,28.74675981,168.3,168.27,3.39620525]
[1747721713146,5.94247682,168.28,168.27,3.39620525]
[1747721715261,5.94212371,168.29,168.27,3.39620525]
[1747721716444,5.94212371,168.29,168.28,3.39620525]
[1747721717363,14.85442661,168.3,168.28,3.39620525]
[1747721718746,5.94141762,168.31,168.28,3.39620525]
[1747721719256,2.2240268,168.3,168.28,3.39620525]
[1747721719460,5.94212371,168.29,168.28,3.39620525]
[1747721719675,5.94212371,168.29,168.25,1.5861]
[1747721721063,5.94212371,168.29,168.26,3.41600194]
[1747721721860,20.79619725,168.3,168.26,3.41600194]
[1747721722568,7.95056256,168.29,168.26,3.41600194]
[1747721722862,28.74675981,168.3,168.26,3.41600194]
[1747721723065,2.22465027,168.29,168.27,3.41600194]
[1747721724049,5.94247682,168.28,168.27,3.41600194]
[1747721725862,5.94212371,168.29,168.27,3.41600194]
[1747721726570,5.94212371,168.29,168.28,3.41600194]
[1747721727546,8.16723296,168.29,168.28,3.41600194]
[1747721728070,16.11779552,168.29,168.28,3.41600194]
[1747721728267,42.11779552,168.29,168.28,3.41600194]
[1747721729143,138.2,168.28,168.23,3.41600194]
[1747721729618,7.95056256,168.24,168.23,3.41600194]
[1747721730163,13.89445224,168.24,168.23,3.41600194]
[1747721730469,33.22985224,168.24,168.23,3.41600194]
[1747721730664,27.5003555,168.24,168.23,3.41600194]
[1747721730841,35.45091806,168.24,168.23,3.41600194]
[1747721731480,9.6803555,168.24,168.23,3.41600194]
[1747721731683,20.59920829,168.24,168.23,3.41600194]
[1747721732047,20.59920829,168.24,168.22,0.00116583]
[1747721732247,2.22106582,168.23,168.22,0.00116583]
[1747721732448,14.65531861,168.23,168.22,0.00116583]
[1747721732663,2.22106582,168.23,168.22,0.00116583]
[1747721733373,18.37814247,168.24,168.22,0.00116583]
[1747721733556,12.43425279,168.23,168.22,0.00116583]
[1747721734351,5.944243,168.23,168.22,0.00116583]
[1747721734573,18.37849579,168.23,168.22,0.00116583]
[1747721734778,20.59478308,168.23,168.22,0.00116583]
[1747721735170,8.16053029,168.23,168.22,0.00116583]
[1747721735397,158.79478308,168.23,168.22,0.00116583]
[1747721737061,146.36053029,168.23,168.22,0.00116583]
[1747721737263,158.79478308,168.23,168.22,0.00116583]
[1747721738377,8.16053029,168.23,168.22,0.00116583]
[1747721739251,5.944243,168.23,168.22,0.00116583]
[1747721741579,18.37849579,168.23,168.22,0.00116583]
[1747721754991,20.58803515,168.23,168.22,0.00116583]
[1747721756479,8.15378236,168.23,168.22,0.00116583]
[1747721756682,5.944243,168.23,168.22,0.00116583]
[1747721757217,18.37849579,168.23,168.22,0.00116583]
[1747721758991,20.58806202,168.23,168.22,0.00116583]
[1747721761678,8.15380923,168.23,168.22,0.00116583]
[1747721762091,5.944243,168.23,168.22,0.00116583]
[1747721762499,18.37849579,168.23,168.22,0.00116583]
[1747721763895,5.944243,168.23,168.22,0.00116583]
[1747721769870,5.9435364,168.25,168.22,0.00116583]
[1747721771982,20.79684823,168.3,168.22,0.00116583]
[1747721772299,2.2180405,168.29,168.22,0.00116583]
[1747721772489,2.2180405,168.29,168.23,6.0438]
[1747721772911,8.16045217,168.29,168.23,6.0438]
[1747721773077,8.16045217,168.29,168.24,1.5183]
[1747721773275,8.16045217,168.29,168.24,4.92558652]
[1747721773903,5.94188478,168.3,168.24,4.92558652]
[1747721774793,20.79302107,168.33,168.24,10.86940535]
[1747721774989,20.79302107,168.33,168.25,3.40728652]
[1747721776583,20.79302107,168.33,168.26,3.40728652]
[1747721777810,20.79302107,168.33,168.27,3.40728652]
[1747721779319,20.79302107,168.33,168.24,1.5183]
[1747721779615,12.43425279,168.31,168.24,1.5183]
[1747721780106,12.43425279,168.32,168.24,1.5183]
[1747721780317,12.43425279,168.31,168.24,1.5183]
[1747721780510,12.43425279,168.3,168.24,1.5183]
[1747721780689,12.43425279,168.31,168.24,1.5183]
[1747721781410,20.79619725,168.3,168.24,1.5183]
[1747721783608,14.85442661,168.3,168.24,1.5183]
[1747721786212,5.94106463,168.32,168.24,1.5183]
[1747721786403,5.94106463,168.32,168.25,18.933972]
[1747721786921,5.94106463,168.32,168.26,3.39164511]
[1747721787713,5.94035879,168.34,168.26,3.39164511]
[1747721788311,20.79125578,168.34,168.26,3.39164511]
[1747721788905,20.79125578,168.34,168.26,26.0]
[1747721793627,20.79125578,168.34,168.27,26.0]
[1747721794225,20.79125578,168.34,168.28,18.933972]
[1747721794531,20.79125578,168.34,168.29,6.0819]
[1747721794819,33.22550857,168.34,168.29,6.0819]
[1747721795027,33.22550857,168.34,168.24,83.7183]
[1747721795028,20.79125578,168.34,168.26,18.933972]
[1747721795336,12.43425279,168.33,168.26,18.933972]
[1747721795707,5.94106463,168.32,168.26,18.933972]
[1747721796705,5.94106463,168.32,168.26,23.63297997]
[1747721796934,5.94106463,168.32,168.27,1.6493]
[1747721797437,5.93965312,168.36,168.28,18.933972]
[1747721797724,20.78818524,168.37,168.31,26.0]
[1747721797918,20.78818524,168.37,168.31,32.6568]
[1747721798819,14.84888489,168.37,168.31,32.6568]
[1747721799227,5.93894761,168.38,168.32,18.933972]
[1747721799434,5.93894761,168.38,168.35,0.28432314]
[1747721799730,5.9375371,168.42,168.35,0.28432314]
[1747721800907,14.84316567,168.43,168.35,0.28432314]
[1747721803311,14.84316567,168.43,168.35,6.22432563]
[1747721803512,14.84316567,168.43,168.35,0.28432314]
[1747721804135,27.27741846,168.43,168.35,0.28432314]
[1747721804321,12.43425279,168.41,168.34,44.64964886]
[1747721804521,12.43425279,168.4,168.33,1.5868]
[1747721804729,12.43425279,168.39,168.33,1.5868]
[1747721804948,12.43425279,168.4,168.33,1.5868]
[1747721805121,20.78508224,168.39,168.33,1.5868]
[1747721805623,20.78508224,168.39,168.34,18.79181043]
[1747721806946,20.78508224,168.39,168.34,18.933972]
[1747721807537,20.78508224,168.39,168.33,1.5868]
[1747721807843,33.21933503,168.39,168.33,1.5868]
[1747721808142,33.21933503,168.39,168.31,43.26861043]
[1747721808447,12.43425279,168.38,168.31,43.26861043]
[1747721809029,20.78508224,168.39,168.32,18.933972]
[1747721812453,20.78508224,168.39,168.26,36.44964886]
[1747721812454,38.43425279,168.36,168.26,36.44964886]
[1747721812664,12.43425279,168.35,168.26,36.44964886]
[1747721812842,12.43425279,168.35,168.27,0.28432314]
[1747721813029,12.43425279,168.35,168.27,3.67532353]
[1747721813729,20.79125578,168.34,168.27,3.67532353]
[1747721814335,20.79125578,168.34,168.29,18.933972]
[1747721815355,14.85089699,168.34,168.29,18.933972]
[1747721815748,14.85089699,168.34,168.29,0.28432314]
[1747721816358,5.94000594,168.35,168.29,0.28432314]
[1747721817665,20.78815346,168.37,168.28,0.28432314]
[1747721817836,33.22240625,168.37,168.3,3.39814212]
[1747721819156,26.0,168.36,168.3,3.39814212]
[1747721819656,5.94000594,168.35,168.28,0.28432314]
[1747721820156,20.79002079,168.35,168.28,0.28432314]
[1747721820729,20.79002079,168.35,168.3,0.28432314]
[1747721821531,20.78631665,168.38,168.31,18.64964886]
[1747721822255,33.22056944,168.38,168.31,18.64964886]
[1747721822659,33.22056944,168.38,168.32,0.28432314]
[1747721822844,20.78631665,168.38,168.32,0.28432314]
[1747721823861,14.84736904,168.38,168.32,0.28432314]
[1747721824040,14.84736904,168.38,168.33,18.64964886]
[1747721825956,33.22056944,168.38,168.32,18.10432314]
[1747721826761,20.78631665,168.38,168.32,18.10432314]
[1747721827362,20.78631665,168.38,168.31,18.552972]
[1747721827551,20.78631665,168.38,168.3,32.2314]
[1747721827745,20.78631665,168.38,168.31,3.40066462]
[1747721828566,20.78631665,168.38,168.32,17.82]
[1747721829838,14.84736904,168.38,168.32,17.82]
[1747721830039,14.84736904,168.38,168.33,3.40066462]
[1747721836465,5.93859492,168.39,168.34,0.28432314]
[1747721837658,5.93788967,168.41,168.34,18.933972]
[1747721838668,20.78261385,168.41,168.34,18.933972]
[1747721838869,20.78261385,168.41,168.36,18.64964886]
[1747721840253,14.84472418,168.41,168.36,18.64964886]
[1747721840456,14.84472418,168.41,168.34,18.933972]
[1747721840870,12.43425279,168.4,168.34,18.64964886]
[1747721841091,12.43425279,168.39,168.32,82.2]
[1747721841258,12.43425279,168.39,168.32,100.0]
[1747721841954,12.43425279,168.39,168.33,3.406455]
[1747721842452,20.78631665,168.38,168.33,3.406455]
[1747721843581,20.78631665,168.38,168.32,100.0]
[1747721844174,27.28162183,168.38,168.32,100.0]
[1747721845392,20.78631665,168.38,168.32,100.0]
[1747721845885,20.78631665,168.38,168.33,3.40790364]
[1747721846582,33.22056944,168.38,168.33,3.40790364]
[1747721847490,33.22056944,168.38,168.32,17.8]
[1747721848897,20.78631665,168.38,168.32,17.8]
[1747721850292,5.93894761,168.38,168.33,44.933972]
[1747721850896,5.93824228,168.4,168.37,18.64964886]
[1747721851111,14.84265544,168.44,168.37,18.64964886]
[1747721851298,14.84265544,168.44,168.38,17.8]
[1747721851506,5.93647966,168.45,168.39,18.64964886]
[1747721853110,5.93612727,168.46,168.39,18.64964886]
[1747721854409,20.77644544,168.46,168.39,18.64964886]
[1747721855628,5.93612727,168.46,168.4,0.28432314]
[1747721855822,5.9354226,168.48,168.43,0.28432314]
[1747721856002,5.9354226,168.48,168.44,17.8]
[1747721856194,5.9354226,168.48,168.45,18.64964886]
[1747721857010,20.77028069,168.51,168.45,18.64964886]
[1747721857326,12.43425279,168.5,168.45,18.64964886]
[1747721857511,12.43425279,168.5,168.46,3.40424315]
[1747721857715,33.20453348,168.51,168.46,3.40424315]
[1747721858324,20.77028069,168.51,168.46,3.40424315]
[1747721858524,29.6608193,168.58,168.46,3.40424315]
[1747721858525,14.06345279,168.6,168.51,18.64964886]
[1747721858714,5.93154991,168.59,168.54,26.0]
[1747721859020,5.93084633,168.61,168.55,18.64964886]
[1747721861125,5.93014291,168.63,168.55,18.64964886]
[1747721862424,5.93014291,168.63,168.56,0.28432314]
[1747721862626,5.93014291,168.63,168.57,17.8]
[1747721864426,20.75426944,168.64,168.58,18.64964886]
[1747721865520,33.18852223,168.64,168.58,18.64964886]
[1747721867526,20.75426944,168.64,168.58,18.64964886]
[1747721871533,14.82447817,168.64,168.58,18.64964886]
[1747721871904,5.92943966,168.65,168.58,18.64964886]
[1747721872231,5.92943966,168.65,168.59,0.28432314]
[1747721872418,5.92943966,168.65,168.59,1.86932314]
[1747721872932,5.92943966,168.65,168.61,26.0]
[1747721873835,12.43425279,168.66,168.6,18.64964886]
[1747721874030,27.25640469,168.67,168.6,18.64964886]
[1747721874422,14.8221519,168.67,168.6,18.64964886]
[1747721874626,27.25640469,168.67,168.6,18.64964886]
[1747721876542,14.8221519,168.67,168.6,18.64964886]
[1747721876710,27.25640469,168.67,168.6,18.64964886]
[1747721877438,27.25640469,168.67,168.59,1.86932314]
[1747721877439,12.43425279,168.66,168.59,1.585]
[1747721877640,12.43425279,168.65,168.59,18.64964886]
[1747721878741,20.75426944,168.64,168.59,18.64964886]
[1747721882125,12.43425279,168.66,168.59,18.64964886]
[1747721882337,38.43425279,168.66,168.59,18.64964886]
[1747721883230,26.0,168.62,168.58,6.3588]
[1747721884123,26.0,168.62,168.59,18.64964886]
[1747721884449,20.75303882,168.65,168.59,18.64964886]
[1747721884748,46.75303882,168.65,168.59,18.64964886]
[1747721885647,46.75303882,168.65,168.6,0.28432314]
[1747721886351,26.0,168.62,168.59,18.64964886]
[1747721887453,5.93084633,168.61,168.59,18.64964886]
[1747721887656,5.92979127,168.64,168.59,18.64964886]
[1747721888162,5.92979127,168.64,168.6,0.28432314]
[1747721888523,5.92873658,168.67,168.6,0.28432314]
[1747721888926,5.92873658,168.67,168.62,18.933972]
[1747721889122,5.92873658,168.67,168.63,17.78]
[1747721889449,5.92873658,168.67,168.64,18.64964886]
[1747721889630,5.92768227,168.7,168.64,18.64964886]
[1747721890535,20.74688796,168.7,168.64,18.64964886]
[1747721891553,20.74336695,168.73,168.65,6.67522314]
[1747721891860,20.74336695,168.73,168.67,0.28432314]
[1747721892032,20.74336695,168.73,168.68,18.64964886]
[1747721892373,5.92662834,168.73,168.69,0.28432314]
[1747721893228,5.92662834,168.73,168.68,18.64964886]
[1747721893229,20.74319919,168.73,168.68,26.0]
[1747721893550,33.17745198,168.73,168.66,44.933972]
[1747721894948,12.43425279,168.72,168.66,26.0]
[1747721895164,20.74319919,168.73,168.66,26.0]
[1747721895341,33.17745198,168.73,168.66,26.0]
[1747721895852,20.74319919,168.73,168.66,26.0]
[1747721896353,20.74319919,168.73,168.67,18.64964886]
[1747721900656,14.81657085,168.73,168.68,3.37881572]
[1747721902660,14.81657085,168.73,168.69,3.37881572]
[1747721903637,5.92592592,168.75,168.71,18.64964886]
[1747721905166,5.92592592,168.75,168.7,29.37881572]
[1747721905167,27.2488022,168.76,168.7,29.37881572]
[1747721905350,14.81454941,168.76,168.7,29.37881572]
[1747721905969,14.81454941,168.76,168.71,3.37881572]
[1747721906969,14.81454941,168.76,168.71,22.02846458]
[1747721907656,14.81454941,168.76,168.71,18.64964886]
[1747721913071,14.81454941,168.76,168.7,26.0]
[1747721914894,12.43425279,168.78,168.71,18.64964886]
[1747721915371,33.17007836,168.79,168.71,18.64964886]
[1747721915746,20.73582557,168.79,168.71,18.64964886]
[1747721915971,20.73582557,168.79,168.72,0.28432314]
[1747721916348,20.73582557,168.79,168.73,18.64964886]
[1747721918074,33.17007836,168.79,168.72,3.38460491]
[1747721918658,33.17007836,168.79,168.71,24.99024886]
[1747721919363,12.43425279,168.77,168.71,6.3406]
[1747721919959,38.43425279,168.78,168.71,6.3406]
[1747721921279,20.73951173,168.76,168.71,6.3406]
[1747721921470,12.43425279,168.75,168.7,17.76]
[1747721922269,12.43425279,168.75,168.69,18.64964886]
[1747721922778,12.43425279,168.75,168.69,36.40964886]
[1747721922964,12.43425279,168.75,168.69,18.64964886]
[1747721923164,27.24818974,168.76,168.69,36.40964886]
[1747721923777,27.24818974,168.76,168.69,18.64964886]
[1747721923955,27.24818974,168.76,168.69,36.40964886]
[1747721924450,14.81393695,168.76,168.69,36.40964886]
[1747721924656,33.17376452,168.76,168.69,36.40964886]
[1747721925185,33.17376452,168.76,168.69,18.64964886]
[1747721925482,33.17376452,168.76,168.69,36.40964886]
[1747721926369,12.43425279,168.75,168.69,36.40964886]
[1747721926786,20.74196989,168.74,168.69,36.40964886]
[1747721926979,33.17622268,168.74,168.69,36.40964886]
[1747721927382,20.74196989,168.74,168.69,36.40964886]
[1747721928292,20.74196989,168.74,168.7,18.64964886]
[1747721930880,14.81569278,168.74,168.7,18.64964886]
[1747721931287,14.81569278,168.74,168.71,3.3920922]
[1747721931684,5.92592592,168.75,168.71,3.3920922]
[1747721932899,12.43425279,168.79,168.72,18.64964886]
[1747721933085,27.24531683,168.8,168.73,3.3920922]
[1747721933588,14.81106404,168.8,168.73,3.3920922]
[1747721933899,27.24531683,168.8,168.73,3.3920922]
[1747721934999,33.16948744,168.8,168.73,3.3920922]
[1747721935301,20.73523465,168.8,168.73,3.3920922]
[1747721935598,20.73523465,168.8,168.74,3.3920922]
[1747721936602,20.73523465,168.8,168.75,3.3920922]
[1747721938100,20.73523465,168.8,168.73,3.3920922]
[1747721939493,20.73523465,168.8,168.74,3.3920922]
[1747721940800,12.43425279,168.78,168.75,3.3920922]
[1747721941099,12.43425279,168.76,168.75,3.3920922]
[1747721941798,12.43425279,168.76,168.68,3.3920922]
[1747721942098,12.43425279,168.74,168.68,3.3920922]
[1747721943009,12.43425279,168.74,168.69,3.3920922]
[1747721943985,20.74319919,168.73,168.69,3.3920922]
[1747721944191,20.74319919,168.73,168.7,3.3920922]
[1747721945490,20.74319919,168.73,168.71,3.3920922]
[1747721946714,20.74319919,168.73,168.68,3.3920922]
[1747721947427,12.43425279,168.7,168.68,3.3920922]
[1747721947635,26.0,168.66,168.63,8.50645025]
[1747721947778,18.933972,168.63,168.54,9.22657226]
[1747721947982,19.44,168.63,168.54,9.22657226]
[1747721948195,12.43425279,168.61,168.54,9.22657226]
[1747721949313,95.83724889,168.66,168.54,35.22657226]
[1747721949520,12.43425279,168.63,168.55,1.5234]
[1747721950094,12.43425279,168.62,168.55,1.5234]
[1747721950622,5.93084633,168.61,168.55,1.5234]
[1747721951802,18.36509912,168.61,168.55,1.5234]
[1747721952320,5.93084633,168.61,168.55,1.5234]
[1747721952525,12.43425279,168.63,168.55,1.5234]
[1747721953620,12.43425279,168.62,168.55,1.5234]
[1747721954825,5.93084633,168.61,168.55,1.5234]
[1747721955511,12.43425279,168.58,168.55,1.5234]
[1747721955717,20.75796215,168.61,168.55,1.5234]
[1747721955922,12.43425279,168.59,168.55,1.5234]
[1747721957929,18.36615455,168.58,168.55,1.5234]
[1747721958729,5.93190176,168.58,168.55,1.5234]
[1747721959329,18.36615455,168.58,168.55,1.5234]
[1747721960437,18.36615455,168.58,168.51,64.07144886]
[1747721960834,5.93190176,168.58,168.51,64.07144886]
[1747721961434,33.19590896,168.58,168.51,64.07144886]
[1747721962932,5.93190176,168.58,168.52,0.28432314]
[1747721963243,5.93190176,168.58,168.54,26.0]
[1747721964935,20.75829244,168.61,168.54,26.0]
[1747721965518,5.93084633,168.61,168.56,18.64964886]
[1747721965715,55.64544053,168.66,168.56,18.64964886]
[1747721965716,5.92768227,168.7,168.6,18.64964886]
[1747721966052,33.18114075,168.7,168.61,0.28432314]
[1747721966437,12.43425279,168.69,168.61,0.28432314]
[1747721966951,5.9283851,168.68,168.61,0.28432314]
[1747721967155,33.18360065,168.68,168.6,18.64964886]
[1747721968444,20.74934786,168.68,168.6,18.64964886]
[1747721969031,33.18360065,168.68,168.6,18.933972]
[1747721970053,33.18360065,168.68,168.6,18.64964886]
[1747721970342,20.74934786,168.68,168.6,18.64964886]
[1747721971046,20.74934786,168.68,168.6,24.58068911]
[1747721971661,5.9283851,168.68,168.61,0.28432314]
[1747721971833,5.92768227,168.7,168.64,18.64964886]
[1747721972847,5.92768227,168.7,168.64,36.42964886]
[1747721973044,5.92768227,168.7,168.66,1.5253]
[1747721973246,5.92697961,168.72,168.66,1.5253]
[1747721973747,18.3612324,168.72,168.66,1.5253]
[1747721974366,12.43425279,168.71,168.66,1.5253]
[1747721974735,12.43425279,168.7,168.64,36.42964886]
[1747721975358,5.92803367,168.69,168.64,36.42964886]
[1747721976549,33.18237063,168.69,168.64,17.78]
[1747721977335,12.43425279,168.68,168.64,17.78]
[1747721977553,5.92873658,168.67,168.64,17.78]
[1747721978349,12.43425279,168.66,168.61,26.0]
[1747721978858,12.43425279,168.66,168.59,18.64964886]
[1747721979061,12.43425279,168.66,168.58,8.0951]
[1747721979352,12.43425279,168.65,168.58,25.8751]
[1747721979556,12.43425279,168.65,168.58,51.8751]
[1747721979735,12.43425279,168.63,168.58,1.5963]
[1747721979935,12.43425279,168.62,168.58,1.5963]
[1747721980860,12.43425279,168.61,168.55,42.53584886]
[1747721981659,5.9311981,168.6,168.55,42.53584886]
[1747721983036,5.9311981,168.6,168.56,18.64964886]
[1747721983661,27.25923446,168.64,168.56,18.64964886]
[1747721985043,33.18902573,168.64,168.56,18.64964886]
[1747721985460,20.75477294,168.64,168.56,18.64964886]
[1747721985960,33.18902573,168.64,168.56,18.64964886]
[1747721988366,5.9304946,168.62,168.56,18.64964886]
[1747721989466,5.93014291,168.63,168.56,18.64964886]
[1747721989769,5.93014291,168.63,168.57,0.28432314]
[1747721991465,20.75477294,168.64,168.57,0.28432314]
[1747721991969,33.18902573,168.64,168.57,0.28432314]
[1747721993871,62.83798208,168.64,168.56,18.64964886]
[1747721994169,12.43425279,168.61,168.57,17.78]
[1747721994470,12.43425279,168.61,168.57,3.38840487]
[1747721996048,5.9311981,168.6,168.55,6.1062]
[1747721996248,20.75919335,168.6,168.55,6.1062]
[1747721996570,20.75919335,168.6,168.5,82.2]
[1747721996571,12.43425279,168.56,168.5,1.5045]
[1747721996765,12.43425279,168.53,168.49,8.41197889]
[1747721997505,12.43425279,168.53,168.48,3.39055839]
[1747721997769,20.76904817,168.52,168.48,3.39055839]
[1747721998289,5.93401376,168.52,168.49,18.64964886]
[1747721999461,20.76904817,168.52,168.48,3.39055839]
[1747721999651,14.83503441,168.52,168.47,26.0]
[1747722000359,14.83503441,168.52,168.46,26.18604886]
[1747722001259,27.2692872,168.52,168.46,26.18604886]
[1747722001465,12.43425279,168.5,168.45,26.0]
[1747722001665,5.9354226,168.48,168.45,26.0]
[1747722001863,5.9354226,168.48,168.43,17.78]
[1747722002094,33.20823189,168.48,168.43,17.78]
[1747722002388,20.7739791,168.48,168.43,17.78]
[1747722002560,20.7739791,168.48,168.42,7.596]
[1747722002761,20.7739791,168.48,168.42,25.376]
[1747722003081,5.9354226,168.48,168.43,18.64964886]
[1747722003959,5.93507033,168.49,168.43,18.64964886]
[1747722005282,5.93507033,168.49,168.44,0.28432314]
[1747722005682,5.93366166,168.53,168.47,18.64964886]
[1747722006055,12.43425279,168.55,168.47,18.64964886]
[1747722006260,18.36756239,168.54,168.47,18.64964886]
[1747722007496,5.9333096,168.54,168.47,18.64964886]
[1747722007692,5.9333096,168.54,168.48,17.8]
[1747722007875,5.9326056,168.56,168.5,1.544]
[1747722008180,20.76346544,168.57,168.5,1.544]
[1747722008362,40.57885579,168.57,168.5,1.544]
[1747722010582,5.93225366,168.57,168.51,18.64964886]
[1747722011663,25.74764401,168.57,168.51,18.64964886]
[1747722012381,5.93225366,168.57,168.51,24.58387674]
[1747722012970,5.93225366,168.57,168.52,0.28432314]
[1747722013589,5.93154991,168.59,168.53,18.64964886]
[1747722013770,14.82502259,168.64,168.54,0.28432314]
[1747722014091,34.64041294,168.64,168.56,18.64964886]
[1747722014790,5.93014291,168.63,168.56,18.64964886]
[1747722015486,40.57089055,168.63,168.56,18.64964886]
[1747722016690,19.81539035,168.6,168.55,17.78]
[1747722016994,19.81539035,168.59,168.53,36.42964886]
[1747722017193,5.93190176,168.58,168.53,36.42964886]
[1747722018193,5.9304946,168.62,168.54,0.28432314]
[1747722018497,25.74588495,168.62,168.54,0.28432314]
[1747722018999,5.9304946,168.62,168.54,0.28432314]
[1747722019299,25.74588495,168.62,168.54,0.28432314]
[1747722020399,34.64127149,168.63,168.54,0.28432314]
[1747722021804,19.81539035,168.61,168.53,36.42964886]
[1747722021981,19.81539035,168.61,168.54,3.38483855]
[1747722023207,20.75919335,168.6,168.54,3.38483855]
[1747722023501,20.75919335,168.6,168.53,36.42964886]
[1747722023905,19.81539035,168.58,168.52,19.44]
[1747722024196,19.81539035,168.58,168.51,18.64964886]
[1747722024800,19.81539035,168.57,168.5,1.544]
[1747722025501,5.9326056,168.56,168.5,1.544]
[1747722025702,5.9326056,168.56,168.51,44.64964886]
[1747722025896,5.93154991,168.59,168.52,0.28432314]
[1747722026503,5.93154991,168.59,168.54,18.64964886]
[1747722026801,26.0,168.59,168.54,18.64964886]
[1747722028084,5.93084633,168.61,168.54,0.28432314]
[1747722028290,26.0,168.6,168.54,0.28432314]
[1747722028490,20.75796215,168.61,168.51,18.64964886]
[1747722028681,45.81539035,168.58,168.51,18.64964886]
[1747722028885,40.57827816,168.57,168.5,19.324]
[1747722029502,40.57827816,168.57,168.51,18.64964886]
[1747722029710,5.93225366,168.57,168.51,22.03911843]
[1747722030504,20.76288781,168.57,168.51,22.03911843]
[1747722030808,20.76288781,168.57,168.51,39.81911843]
[1747722031105,20.76288781,168.57,168.51,36.42964886]
[1747722032610,20.76288781,168.57,168.52,3.39046536]
[1747722033506,14.83063415,168.57,168.52,3.39046536]
[1747722033705,5.93190176,168.58,168.52,3.39046536]
[1747722034009,5.93190176,168.58,168.51,36.42964886]
[1747722034180,5.93190176,168.58,168.52,0.28432314]
[1747722035696,27.20764184,168.6,168.52,0.28432314]
[1747722036688,12.37917114,168.57,168.51,36.42964886]
[1747722037324,12.37917114,168.54,168.52,3.39252496]
[1747722037811,19.82045643,168.54,168.52,3.39252496]
[1747722038013,19.82045643,168.55,168.52,3.39252496]
[1747722038390,19.82045643,168.55,168.5,26.0]
[1747722038592,19.82045643,168.52,168.47,19.44]
[1747722038826,5.9347181,168.5,168.46,19.4224]
[1747722038982,19.82045643,168.49,168.42,29.34017889]
[1747722039186,19.82045643,168.48,168.42,29.34017889]
[1747722039396,19.82045643,168.48,168.42,47.12017889]
[1747722039622,19.82045643,168.49,168.42,47.12017889]
[1747722040012,25.75517453,168.5,168.43,18.64964886]
[1747722040518,19.82045643,168.49,168.43,18.64964886]
[1747722040710,25.75587903,168.48,168.44,3.39454694]
[1747722041398,19.82045643,168.47,168.44,3.39454694]
[1747722041796,19.82045643,168.45,168.44,3.39454694]
[1747722042564,40.59443553,168.48,168.38,17.8]
[1747722042693,25.75781234,168.43,168.38,17.8]
[1747722044513,19.82045643,168.44,168.38,23.7389376]
[1747722044919,19.82045643,168.44,168.39,3.38938929]
[1747722045508,19.82045643,168.43,168.39,3.38938929]
[1747722046323,19.82045643,168.43,168.38,17.8]
[1747722046324,5.9375371,168.42,168.38,17.8]
[1747722047105,5.9375371,168.42,168.37,27.5611]
[1747722048432,5.93718458,168.43,168.37,27.5611]
[1747722048636,25.75764101,168.43,168.37,45.3611]
[1747722048937,19.82045643,168.42,168.37,1.5611]
[1747722049523,19.82045643,168.38,168.33,1.5634]
[1747722050525,5.93930035,168.37,168.31,43.8]
[1747722051107,5.93930035,168.37,168.31,17.8]
[1747722051321,5.93901371,168.38,168.32,18.64964886]
[1747722051523,5.93862509,168.39,168.32,18.64964886]
[1747722053134,5.93862509,168.39,168.32,24.5905514]
[1747722053431,5.93862509,168.39,168.32,18.64964886]
[1747722054233,25.75908152,168.39,168.32,18.64964886]
[1747722055606,19.82045643,168.38,168.32,18.64964886]
[1747722056208,19.82045643,168.37,168.31,43.8]
[1747722056420,19.82045643,168.35,168.29,46.18884886]
[1747722057327,5.94035879,168.34,168.29,46.18884886]
[1747722057564,5.94035879,168.34,168.29,27.5392]
[1747722058636,25.76081522,168.34,168.29,1.5392]
[1747722060040,5.94035879,168.34,168.29,1.5392]
[1747722061237,5.94000594,168.35,168.29,1.5392]
[1747722061616,5.93975611,168.36,168.29,7.48122942]
[1747722062804,25.76021254,168.36,168.29,1.5392]
[1747722063536,19.82045643,168.34,168.29,1.5392]
[1747722063829,12.4169284,168.34,168.29,1.5392]
[1747722064032,46.78888892,168.36,168.29,1.5392]
[1747722064033,12.4169284,168.35,168.29,1.5392]
[1747722064628,12.4169284,168.34,168.29,1.5392]